Cogmind - Beta 16.1 @@@ ROGUE MODE // 2026.03.30 @ 00:38:22 Player: mephiles96 Result: Destroyed by G-47 Trooper with Particle Gun Performance ------------- Evolutions (0) 0 Regions Visited (2) 400 Robots Destroyed (7) 35 Value Destroyed (179) 179 Prototype IDs (0) 0 Alien Tech Used (0) 0 Bonus (0) 0 TOTAL SCORE: 614 Bonus ------- None Cogmind --------- Core Integrity 0/250 Matter 300/300 Energy 100/100 System Corruption 2% Temperature Cool (9) Movement Core (350) Ox6 Location -10/Mines Parts ------- > --- POWER (1) -------- (None) > --- PROPULSION (2) --- (None) > --- UTILITY (2) ------ Large Storage Unit > --- WEAPON (2) ------- (None) > --- INVENTORY (15) --- Ion Engine Aluminum Leg Aluminum Leg Wheel Wheel Sensor Array Signal Interpreter Improved Terrain Scanner Weapon Shielding Weapon Shielding Datajack Peak State ------------ > --- POWER ------------ Light Nuclear Core > --- PROPULSION ------- Light Treads Light Treads > --- UTILITY ---------- Small Storage Unit Seismic Detector > --- WEAPON ----------- Assault Rifle Mining Laser > --- INVENTORY -------- Ion Engine Aluminum Leg Aluminum Leg Wheel Wheel Sensor Array Improved Terrain Scanner Datajack [Rating: 10] Favorites ----------- Power Light Ion Engine Engine Light Ion Engine Power Core Light Nuclear Core Propulsion Light Treads Treads Light Treads Utility Seismic Detector Device Seismic Detector Storage Small Storage Unit Weapon Assault Rifle Energy Gun Small Laser Ballistic Gun Assault Rifle Special Weapon Mining Laser Special Melee Weapon Datajack Build | -11 -10 -10 ------- Run | Yrd Mat Min Slots Evolved . | . . . Power . | . . . Propulsion . | . . . Utility . | . . . Weapon . | . . . Parts Attached 14 | 7 7 . Power 3 | 1 2 . Engine 2 | 1 1 . Core 1 | . 1 . Reactor . | . . . Propulsion 2 | 2 . . Treads 2 | 2 . . Leg . | . . . Wheel . | . . . Hover . | . . . Flight . | . . . Utility 3 | 2 1 . Device 1 | 1 . . Storage 2 | 1 1 . Processor . | . . . Hackware . | . . . Protection . | . . . Artifact . | . . . Weapon 6 | 2 4 . Energy Gun 2 | 1 1 . Energy Cannon . | . . . Ballistic Gun 1 | 1 . . Ballistic Cannon . | . . . Launcher . | . . . Special Weapon 2 | . 2 . Impact Weapon . | . . . Slashing Weapon . | . . . Piercing Weapon . | . . . Special Melee Weapon 1 | . 1 . Unidentified Prototypes . | . . . Parts Lost 7 | . 1 6 Power 1 | . . 1 Propulsion 2 | . . 2 Utility 1 | . . 1 Weapon 3 | . 1 2 Highest Loss Streak 6 | . 1 6 To Critical Strikes . | . . . Average Backups 8 | 5 8 11 Power . | . 1 1 Propulsion 3 | 2 4 4 Utility 2 | . 1 5 Weapon . | 1 . . Tool/Special . | . . . Unused Backups 9 | . . 9 Power 1 | . . 1 Propulsion 4 | . . 4 Utility 4 | . . 4 Weapon . | . . . Tool/Special . | . . . Average Slot Usage (%) 94 | . 98 84 Engine 6 | . 9 . Core 6 | . 5 11 Treads 26 | . 28 23 Device 13 | . 14 11 Storage 14 | . 14 14 Energy Gun 3 | . 5 . Ballistic Gun 13 | . 14 11 Special Weapon 7 | . 6 11 Peak Build Rating 10 | 8 10 10 Average Rating 8 | 5 8 8 On Entrance 6 | . 8 10 Avg Prop Armor Cover (%) . | . . . Naked Turns . | . . . Heaviest Build 29 | 12 29 29 Greatest Support 40 | 40 40 40 Greatest Overweight (x) . | . . . Average Overweight (x) . | . . . Largest Inventory Capacity 15 | 8 15 15 Average Capacity 10 | 6 8 15 Most Carried 11 | 8 11 11 Average Carried 8 | 5 8 11 Final Capacity 15 | 8 15 15 Final Carried 11 | 8 11 11 Class Distribution -------------------- 100% | Mutant Dominant Class ---------------- Mutant | -10/Materials Mutant | -10/Mines Resources | -11 -10 -10 ----------- Run | Yrd Mat Min Matter Collected 440 | 291 102 47 Remotely . | . . . Salvage Created 300 | 144 118 38 Parts 16 | 8 6 2 Haulers Intercepted . | . . . Recyclers Shooed 2 | 1 . 1 Parts Field Recycled . | . . . Retrieved Matter . | . . . Parts Self-Destructed . | . . . Prevented . | . . . Parts Restored . | . . . Kills | -11 -10 -10 ------- Run | Yrd Mat Min Combat Hostiles Destroyed 4 | . 3 1 Guns 4 | . 3 1 Classes Destroyed 3 | 2 1 . Tunneler 2 | 2 . . Recycler 1 | 1 . . Grunt 4 | . 3 1 Best Kill Streak 3 | 3 2 1 Combat Bots Only 2 | . 2 1 Max Kills in Single Turn 1 | 1 1 1 Gunslinging . | . . . Exploded . | . . . Melee . | . . . Uniques/NPCs Destroyed . | . . . Combat | -11 -10 -10 -------- Run | Yrd Mat Min Hostile Shots Fired 67 | . 26 41 Missed 9 | . 3 6 Hits 58 | . 23 35 Projectile 58 | . 23 35 Critical Strikes 1 | . 1 . Damage Taken 864 | . 326 538 Core 261 | . 16 245 Absorbed by Shields . | . . . Core Remaining (%) 100 | 100 . . Volleys Fired 48 | 7 27 14 Largest 2 | 2 2 2 Hottest 120 | 60 120 120 Shots Fired 59 | 14 28 17 Gun 47 | 14 19 14 Cannon . | . . . Launcher . | . . . Special 12 | . 9 3 Kinetic 40 | 7 19 14 Thermal 19 | 7 9 3 Explosive . | . . . Electromagnetic . | . . . Robot Hit Streak 8 | 5 8 8 Robot Miss Streak 2 | 1 2 2 Penetration Max . | . . . Secondary Targets . | . . . Shots Hit Robots 35 | 10 16 9 Core Hits 14 | 4 6 4 Critical Kills . | . . . Critical Parts Destroyed . | . . . Critical Strikes . | . . . Melee Attacks . | . . . Impact . | . . . Slashing . | . . . Piercing . | . . . Sneak Attacks . | . . . Combat Hostiles . | . . . Follow-up Attacks . | . . . Damage Inflicted 485 | 115 209 161 Guns 454 | 115 185 154 Cannons . | . . . Explosions . | . . . Melee . | . . . Ramming 7 | . . 7 Kinetic 389 | 50 185 154 Thermal 89 | 65 24 . Explosive . | . . . Electromagnetic . | . . . Impact . | . . . Slashing . | . . . Piercing . | . . . Highest Corruption 2 | . . 2 Average Corruption 1 | . . 1 Corruption Purged . | . . . Corruption Blocked . | . . . Overload Shots . | . . . Overflow Damage . | . . . Projectiles . | . . . Explosions . | . . . Melee . | . . . Knockbacks . | . . . Impact . | . . . Kinetic . | . . . Secondary . | . . . Self-Inflicted Damage . | . . . Shots . | . . . Rammed 12 | . . 12 Targets Rammed 12 | . . 12 Kicked . | . . . Crushed . | . . . Highest Temperature 148 | . 60 148 Average Temperature 50 | . 25 84 Received Heat Transfer 513 | . 204 309 Siege Activations . | . . . Martial Activations . | . . . Shielding Activations . | . . . Robots Disrupted . | . . . Combat Hostiles . | . . . Robots Corrupted . | . . . Combat Hostiles . | . . . Parts Fried . | . . . Impact Corruptions . | . . . Robots Melted . | . . . Combat Hostiles . | . . . Parts Melted . | . . . Heat Transferred 200 | 150 50 . Parts Sabotaged . | . . . Parts Stolen . | . . . Parts Stripped . | . . . Power Chain Reactions . | . . . Alert | -11 -10 -10 ------- Run | Yrd Mat Min Maximum Alert Level . | . . . Low Security (%) 100 | 100 100 100 Level 1 . | . . . Level 2 . | . . . Level 3 . | . . . Level 4 . | . . . Level 5 . | . . . High Security . | . . . Max Security . | . . . Peak Influence 40 | 10 40 20 Initial . | . . . Average 3 | . 5 1 Influence Increases 148 | 15 107 26 Destroy 0b10 Robot/C 80 | . 60 20 Destroy 0b10 Robot/NC 20 | 15 . 5 Destroy Leader 10 | . 10 . Successful Hack 17 | . 17 . Disable Machine 15 | . 15 . Destroy Structure 6 | . 5 1 Influence Decreases 148 | 15 107 26 Time Decay 128 | 15 102 11 Lost Part 15 | . 5 10 Lost Ally 5 | . . 5 Squads Dispatched . | . . . Investigation . | . . . Extermination . | . . . Reinforcement . | . . . Assault . | . . . Garrison . | . . . Intercept . | . . . Searches Triggered . | . . . Construction Impeded . | . . . Haulers Reinforced . | . . . Active Scanning Responses . | . . . Cargo Convoy Interrupts . | . . . Stealth | -11 -10 -10 --------- Run | Yrd Mat Min Distress Signals . | . . . Communications Jammed . | . . . Distress Signals . | . . . Times Spotted 6 | . 4 2 Peak Tracking Total 2 | . 2 2 Tactical Retreats . | . . . Traps | -11 -10 -10 ------- Run | Yrd Mat Min Traps Triggered . | . . . Indirectly . | . . . Trap Hack Attempts . | . . . Triggered . | . . . Disarmed . | . . . Reprogrammed . | . . . Reused . | . . . Traps Extracted . | . . . Installed . | . . . Triggered . | . . . Machines | -11 -10 -10 ---------- Run | Yrd Mat Min Machines Disabled 1 | . 1 . Max in Single Turn 1 | . 1 . Machines Repaired . | . . . Machines Dismantled . | . . . Machines Sabotaged . | . . . Overloaded Fab Kills . | . . . Hacking | -11 -10 -10 --------- Run | Yrd Mat Min Machines Accessed 3 | . 3 . Terminals 3 | . 3 . Fabricators . | . . . Repair Stations . | . . . Recycling Units . | . . . Scanalyzers . | . . . Garrison Access . | . . . Total Hacks 7 | . 7 . Successful 3 | . 3 . Failed 4 | . 4 . Catastrophic 2 | . 2 . Database Lockouts . | . . . Manual 7 | . 7 . Terminals 7 | . 7 . Fabricators . | . . . Repair Stations . | . . . Recycling Units . | . . . Scanalyzers . | . . . Garrison Access . | . . . Terminal Hacks 2 | . 2 . Branch Access Points 1 | . 1 . Zone Layout 1 | . 1 . Fabricator Hacks . | . . . Repair Station Hacks . | . . . Recycling Unit Hacks . | . . . Scanalyzer . | . . . Garrison Access Hacks . | . . . Unauthorized Hacks 1 | . 1 . Terminals 1 | . 1 . Botnet 1 | . 1 . Fabricators . | . . . Repair Stations . | . . . Recycling Units . | . . . Scanalyzers . | . . . Garrison Access . | . . . Data Cores Recovered . | . . . Used . | . . . Hacking Detections 2 | . 2 . Full Trace Events . | . . . Feedback Events . | . . . Feedback Blocked . | . . . Robot Schematics Acquired . | . . . Robots Built . | . . . Authchips . | . . . Time . | . . . Total Robot Build Rating . | . . . Part Schematics Acquired . | . . . Parts Built . | . . . Authchips . | . . . Time . | . . . Total Part Build Rating . | . . . Part Studies Acquired . | . . . Parts Repaired . | . . . Time . | . . . Parts Recycled . | . . . Recycled Matter . | . . . Retrieved Matter . | . . . Retrieved Components . | . . . Parts Scanalyzed . | . . . Part Schematics Acquired . | . . . Parts Damaged . | . . . Bothacking | -11 -10 -10 ------------ Run | Yrd Mat Min Used RIF Installer . | . . . Robots Hacked . | . . . Non-combat . | . . . Combat . | . . . Robot Hacks Applied . | . . . Relay Couplers Released . | . . . Fabnet Peak Effective % . | . . . Robots Rewired . | . . . Allies Hacked . | . . . Hacks Repelled . | . . . Allies | -11 -10 -10 -------- Run | Yrd Mat Min Total Allies 3 | . . 3 Largest Group 3 | . . 3 Highest-Rated Group 40 | . . 40 Highest-Rated Ally 16 | . . 16 Total Orders . | . . . Ally Attacks 9 | . . 9 Total Damage 103 | . . 103 Kills 1 | . . 1 Allies Corrupted . | . . . Allies Melted . | . . . Intel | -11 -10 -10 ------- Run | Yrd Mat Min Active Infowar (turns) 785 | 51 545 189 Seismic 785 | 51 545 189 Robot Analysis Total . | . . . Derelict Logs Recovered . | . . . Drone Launches . | . . . Drone Recoveries . | . . . Exploration | -11 -10 -10 ------------- Run | Yrd Mat Min Turns Passed 931 | 157 545 229 Spaces Moved 443 | 79 270 94 Core 8 | 8 . . Treads 435 | 71 270 94 Legs . | . . . Wheels . | . . . Hover . | . . . Flight . | . . . Fastest Speed 50 | 50 160 160 Average Speed 158 | 148 160 160 Slowest Speed 160 | 160 160 160 Overloaded Moves . | . . . Propulsion Burnouts . | . . . Robots Hopped . | . . . Potential Cave-ins . | . . . Cave-ins Triggered . | . . . Exploration Rate (%) 21 | 4 35 26 Regions Visited 2 Branch Regions 1 Pre-discovered Areas . | . . . Known Exits Taken 1 | . 1 . Unknown Exits Taken 1 | 1 . . Scrap Searched . | . . . Spaces Dug 6 | . 6 . Terrain Destroyed 7 | . 6 1 Melee . | . . . Projectile 7 | . 6 1 AOE . | . . . Terrain Rammed . | . . . Walls Destroyed . | . . . Machines Disabled . | . . . Actions | -11 -10 -10 --------- Run | Yrd Mat Min Total 562 | 101 336 125 Wait 29 | . 24 5 Move 441 | 78 269 94 Hop . | . . . Pick Up 13 | 9 4 . Fast Attach 8 | 6 2 . Attach 1 | 1 . . Detach . | . . . Swap 6 | . 6 . Drop 4 | . 4 . Fire 48 | 7 27 14 Melee . | . . . Ram 9 | . . 9 Kick . | . . . Crush 3 | . . 3 Escape Stasis . | . . . Rewire . | . . . Trap . | . . . Miscellaneous . | . . . Route ------- -11/Scrapyard -10/Materials (discovered 3 exits: [Mat] / *Min x2) -10/Mines History --------- Turn | Location | Event 6 | -11/Scrapyard | Discovered new exit (range 14) 158 | -11/Scrapyard | Entered Materials 284 | -10/Materials | Identified exit to Mines 304 | -10/Materials | Build established: Mutant 649 | -10/Materials | Discovered new exit (range 13) 703 | -10/Materials | Entered Mines 710 | -10/Mines | Assisted by bots powering up and referring to "LRC-V3" 879 | -10/Mines | Lost 3 allies 915 | -10/Mines | Core integrity fell below 50% 927 | -10/Mines | Core integrity fell below 20% 931 | -10/Mines | Lost 6 parts (1p2n1u2w) 932 | -10/Mines | Destroyed by G-47 Trooper with Particle Gun Last Messages --------------- 00846_ Acquired 30 matter. 00847_ R-06 Scavenger collects Heat Sink. 00853_ R-06 Scavenger collects Lgt. Nuclear Core. 00867_ G-34 Mercenary destroyed. 00869_ R-06 Scavenger collects Imp. Heat Sink. 00882_ Mining Laser destroyed. 00883_ U-05 Engineer builds a Wall. 00884_ Lgt. Treads destroyed. 00886_ Lgt. Nuclear Core destroyed. 00892_ Seismic Detector destroyed. 00894_ Assault Rifle destroyed. 00894_ Acquired 17 matter. 00896_ Slammed into G-47 Trooper. 00900_ Lgt. Treads destroyed. 00901_ Slammed into G-47 Trooper. 00918_ Destabilizing: System corrupted (+1). 00922_ Slammed into G-47 Trooper. 00922_ Destabilizing: System corrupted (+1). 00925_ Slammed into G-47 Trooper. Map ----- +----------------------------------------------------+ | ?????????????????????????????????????????????????? | | ?????????????????????????????????????????????????? | | ?????????????????????????????????????????????????? | | ?????????????????????????????????????????????????? | | ?????????????????????????????????????????????????? | | ?????????????????????????????????????????????????? | | ?????????????????????????????????????????????????? | | ?????????????????????????????????????????????????? | | ?????????????????????????????????????????????????? | | ?????????????????????????????????????????????????? | | ?????????????????????????????????????????????????? | | ?????????????????????????????????????????????????? | | ?????????????????????????????????????????????????? | | ?????????????????????????????????????????????????? | | ?????????????????????????????????????????????????? | | ??????????????????#???????###????????????????????? | | ??????????????????# ?????## #????????????????????? | | ??????????????????# ????## #????????????????????? | | ??????????????????# ???## #????????????????????? | | ??????????????????# ???# ##???????????????????? | | ??????????????????# ??# ##??????????????????? | | ??????????""??????# ??## ##?????????????????? | | ???????# """ ???# ?### ##????????????????? | | ???????# ## ### ##???????????????? | | ????????# * %%![%g ### ##??????????????? | | ?????????# !%= %%%%%@##?## ###????????????? | | ?????????## =! ###% ##???# #######??????? | | ??????????# ##??# #????# #??????? | | ??????????# ?????# #????# #### ######## | | ??????????# ??????# ###??# #??# | | ??????????# ##???????# #??# #??########## | | ??????????# ??????????# #??# #???????????? | | ??????????????????????### #??# ##???????????? | | ????????????????????????# #??# ##????????????? | | ????????????????????????# #??## ##?????#######?? | | ????????????????????????# #???####??????# ### | | ????????????????????????# #?????????????# | | ????????????????????????# #?????????????# #? | | ????????????????????????# #?????????????### ## | | ???????????????????????? ?????????????## # | | ???????????????????????? ?????????????# # | | ???????????????????????? """?????????????# ## | | ???????????????????????? """ ????????????# #? | | ???????????????????????? """ ????????????## ## | | ???????????????????????? ?????????????????## # | | ????????????????????????#??????????????????## | | ????????????????????????????????????????????## | | ?????????????????????????????????????????????##### | | ?????????????????????????????????????????????????? | | ?????????????????????????????????????????????????? | +----------------------------------------------------+ Best States ------------- Heat Dissipation 25 Energy Generation 14 Energy Capacity 160 Matter Stores 300 Matter Capacity 300 Sight Range 16 Terrain Scan Density 10 Evasion (%) 40 Recoil Reduction 2 Item Schematics ----------------- None Robot Schematics ------------------ None Fabricated ------------ Nothing Repaired ---------- Nothing Studied --------- None Alien Tech Used ----------------- None Achievements -------------- None Challenges ------------ None Game ------ Seed TiamatSupercompositeGravjet Manual? 0 Play Time 00:07:48 Cumulative 36.6 hours Start 2026.03.30 @ 00:31:44 End 2026.03.30 @ 00:38:22 Sessions 1 Manual Loads 0 Difficulty Rogue Special Mode None Game No. 45 Rogue 45 Adventurer 0 Explorer 0 Win Type - Total 0 Types 0/0/0/0/0/0/0/0/0/0 Lore% 15 Gallery% 30 Achievement% 22 Wizard Run 0 Options --------- Layout 2 ASCII 0 Keyboard 0 Movement Numpad Keybinds 1 Fullscreen 1 Font 24/Smallcaps Map View 50x44 Zoom Use 0% Tactical HUD 1 Map Filters NONE Filters NONE Steam 1 RUN: a1c9f0f2-83e7-4cc5-b893-b70924ebbb87